[Event "WSCC 50 Women 2017"]
[Site "?"]
[Date "2017.11.18"]
[Round "9"]
[White "Lauterbach, Ingrid"]
[Black "Bogumil, Tatiana"]
[Result "1/2-1/2"]
[ECO "C00"]
[WhiteElo "2007"]
[BlackElo "2124"]
[PlyCount "152"]
[EventDate "2017.??.??"]
[EventType "swiss"]
[EventCountry "ITA"]
[SourceTitle "Acqui Terme"]
[TimeControl "40/5400+30:1800+30"]

1. e4 e6 2. d3 d5 3. Nd2 c5 4. Ngf3 Nc6 5. g3 g6 6. Bg2 Bg7 7. O-O Nge7 8. c3 O-O 9. exd5 Nxd5 10. Nb3 b6 11. d4 Ba6 12. Re1 cxd4 13. Nbxd4 Nxd4 14. Nxd4 Qd7 15. a4 h6 16. Qb3 Rad8 17. Nb5 g5 18. Rd1 Qe7 19. Bd2 Be5 20. c4 Bxb5 21. axb5 Nf6 22. Bb4 Bd6 23. Bxd6 Rxd6 24. Rxd6 Qxd6 25. Rxa7 Rd8 26. Ra8 Rxa8 27. Bxa8 Ng4 28. Bf3 Ne5 29. Qc3 g4 30. Be2 f5 31. b4 Nd7 32. Qd3 Qxd3 33. Bxd3 Kf7 34. Kf1 Kf6 35. Ke2 Ke5 36. Ke3 Nf6 37. Bc2 Nd7 38. Bb1 Nf6 39. Bd3 Nd7 40. Bf1 Kd6 41. Bg2 e5 42. Bb7 Kc7 43. Bc6 Nf8 44. Bd5 Kd6 45. Bf7 Ke7 46. Bg8 Kd6 47. Bd5 Nd7 48. Bb7 Kc7 49. Bc6 Nf8 50. c5 Ne6 51. cxb6+ Kxb6 52. Kd3 Ng5 53. Bd7 f4 54. gxf4 exf4 55. Bxg4 Kxb5 56. h4 Nf7 57. Ke4 Kxb4 58. Kxf4 Kc5 59. Be6 Nd8 60. Ke5 Nc6+ 61. Kf6 Kd6 62. Bc4 Ne5 63. Be2 Nd7+ 64. Kg7 Ke5 65. Kxh6 Kf6 66. Kh7 Nf8+ 67. Kg8 Ne6 68. h5 Kg5 69. Kh7 Nf8+ 70. Kg8 Ne6 71. Kh7 Nf8+ 72. Kg8 Ne6 73. Kf7 Nf4 74. Bf3 Nxh5 75. Ke6 Nf4+ 76. Ke5 Nd3+ 1/2-1/2